Workbook

Sheet 2025年10月城乡低保
A1: 2025年10月城乡最低生活保障金发放花名册
A2: 填报单位：兰州新区社会保障第二服务中心 填报时间：2025年9月26日
A3: 排序序号 | B3: 乡镇 | C3: 村(居)委会 | D3: 村(居)民小组 | E3: 受补（益）人姓名 | F3: 保障类别 | G3: 保障人数 | H3: 月保障标准（元） | I3: 发放金额（元）
A4: 1 | B4: 秦川镇 | C4: 五道岘村委会 | D4: 一社 | E4: 王积兴 | F4: 二类 | G4: 3 | H4: 630 | I4: 1890
A5: 2 | B5: 秦川镇 | C5: 五道岘村委会 | D5: 七社 | E5: 廖福太 | F5: 二类 | G5: 4 | H5: 630 | I5: 2520
A6: 3 | B6: 秦川镇 | C6: 五道岘村委会 | D6: 七社 | E6: 李万义 | F6: 一类 | G6: 2 | H6: 700 | I6: 1400
A7: 4 | B7: 秦川镇 | C7: 五道岘村委会 | D7: 四社 | E7: 徐尕才 | F7: 一类 | G7: 1 | H7: 700 | I7: 700
A8: 5 | B8: 秦川镇 | C8: 五道岘村委会 | D8: 八社 | E8: 刘朕山 | F8: 三类 | G8: 6 | H8: 100 | I8: 600
A9: 6 | B9: 秦川镇 | C9: 五道岘村委会 | D9: 八社 | E9: 徐大才 | F9: 二类 | G9: 1 | H9: 630 | I9: 630
A10: 7 | B10: 秦川镇 | C10: 五道岘村委会 | D10: 八社 | E10: 牛有翠 | F10: 二类 | G10: 4 | H10: 630 | I10: 2520
A11: 8 | B11: 秦川镇 | C11: 五道岘村委会 | D11: 八社 | E11: 薛忠武 | F11: 二类 | G11: 4 | H11: 630 | I11: 2520
A12: 9 | B12: 秦川镇 | C12: 五道岘村委会 | D12: 六社 | E12: 张世兰 | F12: 一类 | G12: 1 | H12: 700 | I12: 700
A13: 10 | B13: 秦川镇 | C13: 五道岘村委会 | D13: 四社 | E13: 杨育洲 | F13: 三类 | G13: 3 | H13: 100 | I13: 300
A14: 11 | B14: 秦川镇 | C14: 五道岘村委会 | D14: 七社 | E14: 李世林 | F14: 二类 | G14: 5 | H14: 630 | I14: 3150
A15: 12 | B15: 秦川镇 | C15: 五道岘村委会 | D15: 二社 | E15: 张燕 | F15: 二类 | G15: 4 | H15: 630 | I15: 2520
A16: 13 | B16: 秦川镇 | C16: 五道岘村委会 | D16: 六社 | E16: 火振彩 | F16: 一类 | G16: 1 | H16: 700 | I16: 700
A17: 14 | B17: 秦川镇 | C17: 五道岘村委会 | D17: 八社 | E17: 邓建福 | F17: 一类 | G17: 2 | H17: 700 | I17: 1400
A18: 15 | B18: 秦川镇 | C18: 五道岘村委会 | D18: 七社 | E18: 罗长年 | F18: 二类 | G18: 1 | H18: 630 | I18: 630
A19: 16 | B19: 秦川镇 | C19: 五道岘村委会 | D19: 五社 | E19: 王秀祖 | F19: 一类 | G19: 3 | H19: 700 | I19: 2100
A20: 17 | B20: 秦川镇 | C20: 五道岘村委会 | D20: 五社 | E20: 杨衍菊 | F20: 一类 | G20: 1 | H20: 700 | I20: 700
A21: 18 | B21: 秦川镇 | C21: 五道岘村委会 | D21: 七社 | E21: 郭道荣 | F21: 二类 | G21: 3 | H21: 630 | I21: 1890
A22: 19 | B22: 秦川镇 | C22: 五道岘村委会 | D22: 四社 | E22: 徐有才 | F22: 一类 | G22: 3 | H22: 700 | I22: 2100
A23: 20 | B23: 秦川镇 | C23: 五道岘村委会 | D23: 六社 | E23: 火焕忠 | F23: 一类 | G23: 2 | H23: 700 | I23: 1400
A24: 21 | B24: 秦川镇 | C24: 五道岘村委会 | D24: 六社 | E24: 邹淑花 | F24: 一类 | G24: 1 | H24: 700 | I24: 700
A25: 22 | B25: 秦川镇 | C25: 五道岘村委会 | D25: 一社 | E25: 撖正强 | F25: 二类 | G25: 3 | H25: 630 | I25: 1890
A26: 23 | B26: 秦川镇 | C26: 五道岘村委会 | D26: 四社 | E26: 索正秀 | F26: 三类 | G26: 1 | H26: 100 | I26: 100
A27: 24 | B27: 秦川镇 | C27: 五道岘村委会 | D27: 四社 | E27: 马彩山 | F27: 二类 | G27: 1 | H27: 630 | I27: 630
A28: 25 | B28: 秦川镇 | C28: 五道岘村委会 | D28: 八社 | E28: 肖朝莲 | F28: 三类 | G28: 1 | H28: 100 | I28: 100
A29: 26 | B29: 秦川镇 | C29: 五道岘村委会 | D29: 四社 | E29: 房桂林 | F29: 一类 | G29: 1 | H29: 700 | I29: 700
A30: 27 | B30: 秦川镇 | C30: 五道岘村委会 | D30: 六社 | E30: 张志宗 | F30: 三类 | G30: 5 | H30: 100 | I30: 500
A31: 28 | B31: 秦川镇 | C31: 炮台村委会 | D31: 二社 | E31: 范春花 | F31: 一类 | G31: 1 | H31: 700 | I31: 700
A32: 29 | B32: 秦川镇 | C32: 炮台村委会 | D32: 二社 | E32: 常学琴 | F32: 二类 | G32: 3 | H32: 630 | I32: 1890
A33: 30 | B33: 秦川镇 | C33: 炮台村委会 | D33: 五社 | E33: 韩进孝 | F33: 一类 | G33: 2 | H33: 700 | I33: 1400
A34: 31 | B34: 秦川镇 | C34: 炮台村委会 | D34: 五社 | E34: 韩悌英 | F34: 一类 | G34: 1 | H34: 700 | I34: 700
A35: 32 | B35: 秦川镇 | C35: 炮台村委会 | D35: 七社 | E35: 庄艳珍 | F35: 一类 | G35: 1 | H35: 700 | I35: 700
A36: 33 | B36: 秦川镇 | C36: 炮台村委会 | D36: 三社 | E36: 王定义 | F36: 二类 | G36: 3 | H36: 630 | I36: 1890
A37: 34 | B37: 秦川镇 | C37: 炮台村委会 | D37: 一社 | E37: 柴宗贵 | F37: 二类 | G37: 2 | H37: 630 | I37: 1260
A38: 35 | B38: 秦川镇 | C38: 炮台村委会 | D38: 三社 | E38: 王定存 | F38: 三类 | G38: 4 | H38: 100 | I38: 400
A39: 36 | B39: 秦川镇 | C39: 炮台村委会 | D39: 四社 | E39: 谢忠祥 | F39: 二类 | G39: 3 | H39: 630 | I39: 1890
A40: 37 | B40: 秦川镇 | C40: 炮台村委会 | D40: 六社 | E40: 庄向福 | F40: 一类 | G40: 2 | H40: 700 | I40: 1400
A41: 38 | B41: 秦川镇 | C41: 炮台村委会 | D41: 六社 | E41: 俞树茂 | F41: 三类 | G41: 3 | H41: 100 | I41: 300
A42: 39 | B42: 秦川镇 | C42: 炮台村委会 | D42: 七社 | E42: 张振国 | F42: 一类 | G42: 1 | H42: 700 | I42: 700
A43: 40 | B43: 秦川镇 | C43: 炮台村委会 | D43: 一社 | E43: 俞友华 | F43: 二类 | G43: 3 | H43: 630 | I43: 1890
A44: 41 | B44: 秦川镇 | C44: 炮台村委会 | D44: 四社 | E44: 何建梅 | F44: 二类 | G44: 1 | H44: 630 | I44: 630
A45: 42 | B45: 秦川镇 | C45: 炮台村委会 | D45: 二社 | E45: 王道华 | F45: 二类 | G45: 2 | H45: 630 | I45: 1260
A46: 43 | B46: 秦川镇 | C46: 炮台村委会 | D46: 四社 | E46: 韩文博 | F46: 三类 | G46: 2 | H46: 100 | I46: 200
A47: 44 | B47: 秦川镇 | C47: 炮台村委会 | D47: 五社 | E47: 韩国孝 | F47: 四类 | G47: 4 | H47: 62 | I47: 248
A48: 45 | B48: 秦川镇 | C48: 炮台村委会 | D48: 七社 | E48: 庄向和 | F48: 二类 | G48: 2 | H48: 630 | I48: 1260
A49: 46 | B49: 秦川镇 | C49: 炮台村委会 | D49: 三社 | E49: 陈学智 | F49: 二类 | G49: 2 | H49: 630 | I49: 1260
A50: 47 | B50: 秦川镇 | C50: 炮台村委会 | D50: 一社 | E50: 柴金霞 | F50: 二类 | G50: 1 | H50: 630 | I50: 630
A51: 48 | B51: 秦川镇 | C51: 炮台村委会 | D51: 五社 | E51: 韩悌刚 | F51: 二类 | G51: 4 | H51: 630 | I51: 2520
A52: 49 | B52: 秦川镇 | C52: 炮台村委会 | D52: 四社 | E52: 韩辉孝 | F52: 三类 | G52: 6 | H52: 100 | I52: 600
A53: 50 | B53: 秦川镇 | C53: 炮台村委会 | D53: 五社 | E53: 韩军孝 | F53: 二类 | G53: 1 | H53: 630 | I53: 630
A54: 51 | B54: 秦川镇 | C54: 炮台村委会 | D54: 五社 | E54: 刘永年 | F54: 二类 | G54: 2 | H54: 630 | I54: 1260
A55: 52 | B55: 秦川镇 | C55: 炮台村委会 | D55: 二社 | E55: 王继才 | F55: 一类 | G55: 1 | H55: 700 | I55: 700
A56: 53 | B56: 秦川镇 | C56: 炮台村委会 | D56: 二社 | E56: 张兆莲 | F56: 一类 | G56: 1 | H56: 700 | I56: 700
A57: 54 | B57: 秦川镇 | C57: 炮台村委会 | D57: 五社 | E57: 张兰英 | F57: 二类 | G57: 3 | H57: 630 | I57: 1890
A58: 55 | B58: 秦川镇 | C58: 炮台村委会 | D58: 七社 | E58: 王学英 | F58: 二类 | G58: 1 | H58: 630 | I58: 630
A59: 56 | B59: 秦川镇 | C59: 炮台村委会 | D59: 六社 | E59: 陈秀林 | F59: 二类 | G59: 1 | H59: 630 | I59: 630
A60: 57 | B60: 秦川镇 | C60: 炮台村委会 | D60: 五社 | E60: 张继莲 | F60: 二类 | G60: 3 | H60: 630 | I60: 1890
A61: 58 | B61: 秦川镇 | C61: 尹家庄村委会 | D61: 二社 | E61: 葛玉芳 | F61: 二类 | G61: 1 | H61: 630 | I61: 630
A62: 59 | B62: 秦川镇 | C62: 尹家庄村委会 | D62: 五社 | E62: 葛海春 | F62: 一类 | G62: 2 | H62: 700 | I62: 1400
A63: 60 | B63: 秦川镇 | C63: 尹家庄村委会 | D63: 五社 | E63: 张财祥 | F63: 二类 | G63: 3 | H63: 630 | I63: 1890
A64: 61 | B64: 秦川镇 | C64: 尹家庄村委会 | D64: 五社 | E64: 米如军 | F64: 二类 | G64: 5 | H64: 630 | I64: 3150
A65: 62 | B65: 秦川镇 | C65: 尹家庄村委会 | D65: 五社 | E65: 张兴财 | F65: 一类 | G65: 2 | H65: 700 | I65: 1400
A66: 63 | B66: 秦川镇 | C66: 尹家庄村委会 | D66: 二社 | E66: 杨文花 | F66: 三类 | G66: 1 | H66: 100 | I66: 100
A67: 64 | B67: 秦川镇 | C67: 尹家庄村委会 | D67: 二社 | E67: 张瑞军 | F67: 二类 | G67: 2 | H67: 630 | I67: 1260
A68: 65 | B68: 秦川镇 | C68: 尹家庄村委会 | D68: 三社 | E68: 葛泽春 | F68: 三类 | G68: 5 | H68: 100 | I68: 500
A69: 66 | B69: 秦川镇 | C69: 尹家庄村委会 | D69: 三社 | E69: 杨彦民 | F69: 二类 | G69: 2 | H69: 630 | I69: 1260
A70: 67 | B70: 秦川镇 | C70: 尹家庄村委会 | D70: 五社 | E70: 张忠和 | F70: 二类 | G70: 4 | H70: 630 | I70: 2520
A71: 68 | B71: 秦川镇 | C71: 尹家庄村委会 | D71: 三社 | E71: 王维秀 | F71: 二类 | G71: 2 | H71: 630 | I71: 1260
A72: 69 | B72: 秦川镇 | C72: 尹家庄村委会 | D72: 一社 | E72: 高银堂 | F72: 二类 | G72: 3 | H72: 630 | I72: 1890
A73: 70 | B73: 秦川镇 | C73: 尹家庄村委会 | D73: 一社 | E73: 曾萍 | F73: 二类 | G73: 1 | H73: 630 | I73: 630
A74: 71 | B74: 秦川镇 | C74: 西小川村委会 | D74: 六社 | E74: 巨有贤 | F74: 四类 | G74: 1 | H74: 62 | I74: 62
A75: 72 | B75: 秦川镇 | C75: 西小川村委会 | D75: 一社 | E75: 把余霞 | F75: 二类 | G75: 1 | H75: 630 | I75: 630
A76: 73 | B76: 秦川镇 | C76: 保家窑村委会 | D76: 一社 | E76: 火高云 | F76: 一类 | G76: 1 | H76: 700 | I76: 700
A77: 74 | B77: 秦川镇 | C77: 保家窑村委会 | D77: 八社 | E77: 周玉香 | F77: 三类 | G77: 1 | H77: 100 | I77: 100
A78: 75 | B78: 秦川镇 | C78: 保家窑村委会 | D78: 十社 | E78: 陶永才 | F78: 二类 | G78: 2 | H78: 630 | I78: 1260
A79: 76 | B79: 秦川镇 | C79: 保家窑村委会 | D79: 十社 | E79: 王琴玉 | F79: 三类 | G79: 1 | H79: 100 | I79: 100
A80: 77 | B80: 秦川镇 | C80: 上华家井村委会 | D80: 四社 | E80: 孙莉 | F80: 一类 | G80: 1 | H80: 700 | I80: 700
A81: 78 | B81: 秦川镇 | C81: 上华家井村委会 | D81: 四社 | E81: 李克贤 | F81: 一类 | G81: 1 | H81: 700 | I81: 700
A82: 79 | B82: 秦川镇 | C82: 上华家井村委会 | D82: 四社 | E82: 李克亨 | F82: 一类 | G82: 1 | H82: 700 | I82: 700
A83: 80 | B83: 秦川镇 | C83: 上华家井村委会 | D83: 一社 | E83: 邓有虎 | F83: 二类 | G83: 2 | H83: 630 | I83: 1260
A84: 81 | B84: 秦川镇 | C84: 上华家井村委会 | D84: 二社 | E84: 张恩元 | F84: 一类 | G84: 2 | H84: 700 | I84: 1400
A85: 82 | B85: 秦川镇 | C85: 上华家井村委会 | D85: 一社 | E85: 张钦祯 | F85: 二类 | G85: 2 | H85: 630 | I85: 1260
A86: 83 | B86: 秦川镇 | C86: 上华家井村委会 | D86: 一社 | E86: 薛生蛟 | F86: 一类 | G86: 4 | H86: 700 | I86: 2800
A87: 84 | B87: 秦川镇 | C87: 上华家井村委会 | D87: 四社 | E87: 韩年孝 | F87: 一类 | G87: 1 | H87: 700 | I87: 700
A88: 85 | B88: 秦川镇 | C88: 上华家井村委会 | D88: 一社 | E88: 甘培祯 | F88: 三类 | G88: 6 | H88: 100 | I88: 600
A89: 86 | B89: 秦川镇 | C89: 上华家井村委会 | D89: 四社 | E89: 张福忠 | F89: 二类 | G89: 2 | H89: 630 | I89: 1260
A90: 87 | B90: 秦川镇 | C90: 上华家井村委会 | D90: 四社 | E90: 逯承梅 | F90: 二类 | G90: 1 | H90: 630 | I90: 630
A91: 88 | B91: 秦川镇 | C91: 上华家井村委会 | D91: 二社 | E91: 唐占胜 | F91: 三类 | G91: 7 | H91: 100 | I91: 700
A92: 89 | B92: 秦川镇 | C92: 上华家井村委会 | D92: 一社 | E92: 许正桂 | F92: 一类 | G92: 1 | H92: 700 | I92: 700
A93: 90 | B93: 秦川镇 | C93: 上华家井村委会 | D93: 四社 | E93: 王正国 | F93: 二类 | G93: 1 | H93: 630 | I93: 630
A94: 91 | B94: 秦川镇 | C94: 上华家井村委会 | D94: 五社 | E94: 魏晋福 | F94: 三类 | G94: 4 | H94: 100 | I94: 400
A95: 92 | B95: 秦川镇 | C95: 上华家井村委会 | D95: 二社 | E95: 巨桂庆 | F95: 二类 | G95: 1 | H95: 630 | I95: 630
A96: 93 | B96: 秦川镇 | C96: 上华家井村委会 | D96: 二社 | E96: 曹国才 | F96: 二类 | G96: 2 | H96: 630 | I96: 1260
A97: 94 | B97: 秦川镇 | C97: 上华家井村委会 | D97: 五社 | E97: 李桂忠 | F97: 二类 | G97: 4 | H97: 630 | I97: 2520
A98: 95 | B98: 秦川镇 | C98: 上华家井村委会 | D98: 二社 | E98: 曹才军 | F98: 三类 | G98: 6 | H98: 100 | I98: 600
A99: 96 | B99: 秦川镇 | C99: 上华家井村委会 | D99: 五社 | E99: 李浩玲 | F99: 二类 | G99: 6 | H99: 630 | I99: 3780
A100: 97 | B100: 秦川镇 | C100: 上华家井村委会 | D100: 三社 | E100: 王全山 | F100: 三类 | G100: 3 | H100: 100 | I100: 300
A101: 98 | B101: 秦川镇 | C101: 胜利村委会 | D101: 二社 | E101: 缪培林 | F101: 一类 | G101: 1 | H101: 700 | I101: 700
A102: 99 | B102: 秦川镇 | C102: 胜利村委会 | D102: 七社 | E102: 范玉明 | F102: 一类 | G102: 1 | H102: 700 | I102: 700
A103: 100 | B103: 秦川镇 | C103: 胜利村委会 | D103: 四社 | E103: 杨玉昌 | F103: 一类 | G103: 1 | H103: 700 | I103: 700
A104: 101 | B104: 秦川镇 | C104: 胜利村委会 | D104: 二社 | E104: 王全福 | F104: 一类 | G104: 1 | H104: 700 | I104: 700
A105: 102 | B105: 秦川镇 | C105: 胜利村委会 | D105: 三社 | E105: 王正全 | F105: 二类 | G105: 2 | H105: 630 | I105: 1260
A106: 103 | B106: 秦川镇 | C106: 胜利村委会 | D106: 八社 | E106: 何进元 | F106: 二类 | G106: 1 | H106: 630 | I106: 630
A107: 104 | B107: 秦川镇 | C107: 胜利村委会 | D107: 八社 | E107: 董致华 | F107: 三类 | G107: 5 | H107: 100 | I107: 500
A108: 105 | B108: 秦川镇 | C108: 胜利村委会 | D108: 五社 | E108: 杨增飞 | F108: 二类 | G108: 2 | H108: 630 | I108: 1260
A109: 106 | B109: 秦川镇 | C109: 胜利村委会 | D109: 五社 | E109: 王维东 | F109: 一类 | G109: 3 | H109: 700 | I109: 2100
A110: 107 | B110: 秦川镇 | C110: 胜利村委会 | D110: 四社 | E110: 张瑞兴 | F110: 二类 | G110: 4 | H110: 630 | I110: 2520
A111: 108 | B111: 秦川镇 | C111: 胜利村委会 | D111: 八社 | E111: 田正安 | F111: 三类 | G111: 2 | H111: 100 | I111: 200
A112: 109 | B112: 秦川镇 | C112: 胜利村委会 | D112: 四社 | E112: 王世栋 | F112: 三类 | G112: 7 | H112: 100 | I112: 700
A113: 110 | B113: 秦川镇 | C113: 胜利村委会 | D113: 四社 | E113: 张忠双 | F113: 三类 | G113: 2 | H113: 100 | I113: 200
A114: 111 | B114: 秦川镇 | C114: 胜利村委会 | D114: 四社 | E114: 王紫乐 | F114: 二类 | G114: 3 | H114: 630 | I114: 1890
A115: 112 | B115: 秦川镇 | C115: 胜利村委会 | D115: 三社 | E115: 李桂崇 | F115: 三类 | G115: 1 | H115: 100 | I115: =H115*G115 -> 100
A116: 113 | B116: 秦川镇 | C116: 胜利村委会 | D116: 四社 | E116: 陈香莲 | F116: 一类 | G116: 1 | H116: 700 | I116: 700
A117: 114 | B117: 秦川镇 | C117: 胜利村委会 | D117: 六社 | E117: 王世昌 | F117: 三类 | G117: 2 | H117: 100 | I117: 200
A118: 115 | B118: 秦川镇 | C118: 胜利村委会 | D118: 一社 | E118: 杨河崇 | F118: 二类 | G118: 2 | H118: 630 | I118: 1260
A119: 116 | B119: 秦川镇 | C119: 胜利村委会 | D119: 七社 | E119: 张文莲 | F119: 一类 | G119: 1 | H119: 700 | I119: 700
A120: 117 | B120: 秦川镇 | C120: 胜利村委会 | D120: 三社 | E120: 张克义 | F120: 二类 | G120: 2 | H120: 630 | I120: 1260
A121: 118 | B121: 秦川镇 | C121: 胜利村委会 | D121: 一社 | E121: 梁如廷 | F121: 一类 | G121: 1 | H121: 700 | I121: 700
A122: 119 | B122: 秦川镇 | C122: 胜利村委会 | D122: 三社 | E122: 廖敏云 | F122: 二类 | G122: 1 | H122: 630 | I122: 630
A123: 120 | B123: 秦川镇 | C123: 胜利村委会 | D123: 四社 | E123: 张忠华 | F123: 二类 | G123: 2 | H123: 630 | I123: 1260
A124: 121 | B124: 秦川镇 | C124: 胜利村委会 | D124: 三社 | E124: 王芳 | F124: 二类 | G124: 3 | H124: 630 | I124: 1890
A125: 122 | B125: 秦川镇 | C125: 胜利村委会 | D125: 九社 | E125: 赵立贵 | F125: 一类 | G125: 1 | H125: 700 | I125: 700
A126: 123 | B126: 秦川镇 | C126: 胜利村委会 | D126: 七社 | E126: 范祥珍 | F126: 二类 | G126: 2 | H126: 630 | I126: 1260
A127: 124 | B127: 秦川镇 | C127: 胜利村委会 | D127: 七社 | E127: 范祥顺 | F127: 二类 | G127: 2 | H127: 630 | I127: 1260
A128: 125 | B128: 秦川镇 | C128: 胜利村委会 | D128: 三社 | E128: 胡学芳 | F128: 一类 | G128: 1 | H128: 700 | I128: 700
A129: 126 | B129: 秦川镇 | C129: 胜利村委会 | D129: 二社 | E129: 施应昌 | F129: 二类 | G129: 1 | H129: 630 | I129: 630
A130: 127 | B130: 秦川镇 | C130: 胜利村委会 | D130: 八社 | E130: 董发忠 | F130: 二类 | G130: 1 | H130: 630 | I130: 630
A131: 128 | B131: 秦川镇 | C131: 六墩村委会 | D131: 一社 | E131: 赵华翠 | F131: 一类 | G131: 1 | H131: 700 | I131: 700
A132: 129 | B132: 秦川镇 | C132: 六墩村委会 | D132: 二社 | E132: 张国花 | F132: 二类 | G132: 2 | H132: 630 | I132: 1260
A133: 130 | B133: 秦川镇 | C133: 六墩村委会 | D133: 一社 | E133: 陈永峰 | F133: 三类 | G133: 4 | H133: 100 | I133: =H133*G133 -> 400
A134: 131 | B134: 秦川镇 | C134: 六墩村委会 | D134: 四社 | E134: 魏晋山 | F134: 一类 | G134: 1 | H134: 700 | I134: 700
A135: 132 | B135: 秦川镇 | C135: 六墩村委会 | D135: 一社 | E135: 徐风英 | F135: 三类 | G135: 4 | H135: 100 | I135: 400
A136: 133 | B136: 秦川镇 | C136: 六墩村委会 | D136: 一社 | E136: 陈永林 | F136: 三类 | G136: 4 | H136: 100 | I136: 400
A137: 134 | B137: 秦川镇 | C137: 六墩村委会 | D137: 六社 | E137: 赵晶晶 | F137: 二类 | G137: 1 | H137: 630 | I137: 630
A138: 135 | B138: 秦川镇 | C138: 六墩村委会 | D138: 六社 | E138: 张卫军 | F138: 二类 | G138: 3 | H138: 630 | I138: 1890
A139: 136 | B139: 秦川镇 | C139: 六墩村委会 | D139: 四社 | E139: 熊丽萍 | F139: 二类 | G139: 4 | H139: 630 | I139: 2520
A140: 137 | B140: 秦川镇 | C140: 六墩村委会 | D140: 三社 | E140: 赵秀芳 | F140: 二类 | G140: 4 | H140: 630 | I140: 2520
A141: 138 | B141: 秦川镇 | C141: 六墩村委会 | D141: 六社 | E141: 彭彦清 | F141: 二类 | G141: 5 | H141: 630 | I141: 3150
A142: 139 | B142: 秦川镇 | C142: 六墩村委会 | D142: 二社 | E142: 林英德 | F142: 二类 | G142: 2 | H142: 630 | I142: 1260
A143: 140 | B143: 秦川镇 | C143: 六墩村委会 | D143: 五社 | E143: 刘建国 | F143: 二类 | G143: 1 | H143: 630 | I143: 630
A144: 141 | B144: 秦川镇 | C144: 六墩村委会 | D144: 三社 | E144: 张大恭 | F144: 二类 | G144: 3 | H144: 630 | I144: 1890
A145: 142 | B145: 秦川镇 | C145: 六墩村委会 | D145: 四社 | E145: 陈应芳 | F145: 二类 | G145: 4 | H145: 630 | I145: 2520
A146: 143 | B146: 秦川镇 | C146: 六墩村委会 | D146: 一社 | E146: 陈永高 | F146: 三类 | G146: 4 | H146: 100 | I146: 400
A147: 144 | B147: 秦川镇 | C147: 六墩村委会 | D147: 一社 | E147: 王有莲 | F147: 一类 | G147: 1 | H147: 700 | I147: 700
A148: 145 | B148: 秦川镇 | C148: 六墩村委会 | D148: 四社 | E148: 吴学梅 | F148: 一类 | G148: 1 | H148: 700 | I148: 700
A149: 146 | B149: 秦川镇 | C149: 六墩村委会 | D149: 一社 | E149: 杨衍明 | F149: 一类 | G149: 3 | H149: 700 | I149: 2100
A150: 147 | B150: 秦川镇 | C150: 六墩村委会 | D150: 二社 | E150: 魏周武 | F150: 三类 | G150: 3 | H150: 100 | I150: 300
A151: 148 | B151: 秦川镇 | C151: 源泰村委会 | D151: 二社 | E151: 肖同举 | F151: 三类 | G151: 4 | H151: 100 | I151: 400
A152: 149 | B152: 秦川镇 | C152: 源泰村委会 | D152: 二社 | E152: 肖有安 | F152: 一类 | G152: 1 | H152: 700 | I152: 700
A153: 150 | B153: 秦川镇 | C153: 源泰村委会 | D153: 四社 | E153: 海秉军 | F153: 三类 | G153: 2 | H153: 100 | I153: 200
A154: 151 | B154: 秦川镇 | C154: 源泰村委会 | D154: 一社 | E154: 杨树明 | F154: 一类 | G154: 1 | H154: 700 | I154: 700
A155: 152 | B155: 秦川镇 | C155: 源泰村委会 | D155: 二社 | E155: 杨春桥 | F155: 二类 | G155: 3 | H155: 630 | I155: 1890
A156: 153 | B156: 秦川镇 | C156: 源泰村委会 | D156: 一社 | E156: 肖雁天 | F156: 二类 | G156: 1 | H156: 630 | I156: 630
A157: 154 | B157: 秦川镇 | C157: 源泰村委会 | D157: 二社 | E157: 肖同玉 | F157: 二类 | G157: 1 | H157: 630 | I157: 630
A158: 155 | B158: 秦川镇 | C158: 源泰村委会 | D158: 七社 | E158: 李小女 | F158: 三类 | G158: 4 | H158: 100 | I158: 400
A159: 156 | B159: 秦川镇 | C159: 源泰村委会 | D159: 八社 | E159: 王维东 | F159: 二类 | G159: 2 | H159: 630 | I159: 1260
A160: 157 | B160: 秦川镇 | C160: 源泰村委会 | D160: 八社 | E160: 孙小堂 | F160: 三类 | G160: 5 | H160: 100 | I160: 500
A161: 158 | B161: 秦川镇 | C161: 源泰村委会 | D161: 一社 | E161: 苗成兵 | F161: 三类 | G161: 1 | H161: 100 | I161: 100
A162: 159 | B162: 秦川镇 | C162: 源泰村委会 | D162: 二社 | E162: 姚富菊 | F162: 二类 | G162: 3 | H162: 630 | I162: 1890
A163: 160 | B163: 秦川镇 | C163: 源泰村委会 | D163: 八社 | E163: 周文斌 | F163: 二类 | G163: 3 | H163: 630 | I163: 1890
A164: 161 | B164: 秦川镇 | C164: 源泰村委会 | D164: 七社 | E164: 金成科 | F164: 二类 | G164: 2 | H164: 630 | I164: 1260
A165: 162 | B165: 秦川镇 | C165: 源泰村委会 | D165: 一社 | E165: 肖清德 | F165: 一类 | G165: 1 | H165: 700 | I165: 700
A166: 163 | B166: 秦川镇 | C166: 源泰村委会 | D166: 一社 | E166: 杨树栋 | F166: 二类 | G166: 2 | H166: 630 | I166: 1260
A167: 164 | B167: 秦川镇 | C167: 石门沟村委会 | D167: 五社 | E167: 李生录 | F167: 一类 | G167: 2 | H167: 700 | I167: 1400
A168: 165 | B168: 秦川镇 | C168: 石门沟村委会 | D168: 六社 | E168: 李庆善 | F168: 二类 | G168: 7 | H168: 630 | I168: 4410
A169: 166 | B169: 秦川镇 | C169: 石门沟村委会 | D169: 六社 | E169: 高凤志 | F169: 二类 | G169: 3 | H169: 630 | I169: 1890
A170: 167 | B170: 秦川镇 | C170: 石门沟村委会 | D170: 一社 | E170: 杨曾富 | F170: 二类 | G170: 3 | H170: 630 | I170: 1890
A171: 168 | B171: 秦川镇 | C171: 石门沟村委会 | D171: 五社 | E171: 王军忠 | F171: 二类 | G171: 3 | H171: 630 | I171: 1890
A172: 169 | B172: 秦川镇 | C172: 石门沟村委会 | D172: 五社 | E172: 杨长得 | F172: 二类 | G172: 2 | H172: 630 | I172: 1260
A173: 170 | B173: 秦川镇 | C173: 石门沟村委会 | D173: 二社 | E173: 边得山 | F173: 一类 | G173: 5 | H173: 700 | I173: 3500
A174: 171 | B174: 秦川镇 | C174: 石门沟村委会 | D174: 五社 | E174: 李长存 | F174: 二类 | G174: 5 | H174: 630 | I174: 3150
A175: 172 | B175: 秦川镇 | C175: 石门沟村委会 | D175: 二社 | E175: 边得福 | F175: 二类 | G175: 4 | H175: 630 | I175: 2520
A176: 173 | B176: 秦川镇 | C176: 石门沟村委会 | D176: 五社 | E176: 朵玉芳 | F176: 二类 | G176: 1 | H176: 630 | I176: 630
A177: 174 | B177: 秦川镇 | C177: 小横路村委会 | D177: 一社 | E177: 王作章 | F177: 二类 | G177: 4 | H177: 630 | I177: 2520
A178: 175 | B178: 秦川镇 | C178: 小横路村委会 | D178: 一社 | E178: 芦岩 | F178: 三类 | G178: 3 | H178: 100 | I178: 300
A179: 176 | B179: 秦川镇 | C179: 小横路村委会 | D179: 三社 | E179: 廖永珠 | F179: 二类 | G179: 1 | H179: 630 | I179: 630
A180: 177 | B180: 秦川镇 | C180: 小横路村委会 | D180: 三社 | E180: 马雪芳 | F180: 三类 | G180: 4 | H180: 100 | I180: 400
A181: 178 | B181: 秦川镇 | C181: 小横路村委会 | D181: 三社 | E181: 王有田 | F181: 三类 | G181: 3 | H181: 100 | I181: 300
A182: 179 | B182: 秦川镇 | C182: 小横路村委会 | D182: 四社 | E182: 马建录 | F182: 一类 | G182: 4 | H182: 700 | I182: 2800
A183: 180 | B183: 秦川镇 | C183: 小横路村委会 | D183: 四社 | E183: 熊增伟 | F183: 二类 | G183: 2 | H183: 630 | I183: 1260
A184: 181 | B184: 秦川镇 | C184: 小横路村委会 | D184: 四社 | E184: 朱宝芳 | F184: 一类 | G184: 2 | H184: 700 | I184: 1400
A185: 182 | B185: 秦川镇 | C185: 小横路村委会 | D185: 一社 | E185: 芦屹 | F185: 二类 | G185: 2 | H185: 630 | I185: 1260
A186: 183 | B186: 秦川镇 | C186: 小横路村委会 | D186: 二社 | E186: 廖哲儒 | F186: 三类 | G186: 1 | H186: 100 | I186: 100
A187: 184 | B187: 秦川镇 | C187: 小横路村委会 | D187: 三社 | E187: 高启荣 | F187: 二类 | G187: 2 | H187: 630 | I187: 1260
A188: 185 | B188: 秦川镇 | C188: 小横路村委会 | D188: 二社 | E188: 张厚霞 | F188: 一类 | G188: 2 | H188: 700 | I188: 1400
A189: 186 | B189: 秦川镇 | C189: 小横路村委会 | D189: 三社 | E189: 王有祥 | F189: 三类 | G189: 4 | H189: 100 | I189: 400
A190: 187 | B190: 秦川镇 | C190: 小横路村委会 | D190: 五社 | E190: 宋兰芳 | F190: 三类 | G190: 4 | H190: 100 | I190: 400
A191: 188 | B191: 秦川镇 | C191: 小横路村委会 | D191: 三社 | E191: 魏旭 | F191: 三类 | G191: 4 | H191: 100 | I191: 400
A192: 189 | B192: 秦川镇 | C192: 小横路村委会 | D192: 三社 | E192: 毛同春 | F192: 三类 | G192: 3 | H192: 100 | I192: 300
A193: 190 | B193: 秦川镇 | C193: 振兴村委会 | D193: 二社 | E193: 马正信 | F193: 三类 | G193: 2 | H193: 100 | I193: 200
A194: 191 | B194: 秦川镇 | C194: 振兴村委会 | D194: 四社 | E194: 火元成 | F194: 三类 | G194: 1 | H194: 100 | I194: 100
A195: 192 | B195: 秦川镇 | C195: 振兴村委会 | D195: 四社 | E195: 巨清莲 | F195: 一类 | G195: 1 | H195: 700 | I195: 700
A196: 193 | B196: 秦川镇 | C196: 振兴村委会 | D196: 三社 | E196: 王海涛 | F196: 一类 | G196: 1 | H196: 700 | I196: 700
A197: 194 | B197: 秦川镇 | C197: 振兴村委会 | D197: 一社 | E197: 石国安 | F197: 一类 | G197: 1 | H197: 700 | I197: 700
A198: 195 | B198: 秦川镇 | C198: 振兴村委会 | D198: 一社 | E198: 白永环 | F198: 一类 | G198: 1 | H198: 700 | I198: 700
A199: 196 | B199: 秦川镇 | C199: 振兴村委会 | D199: 四社 | E199: 高万盛 | F199: 二类 | G199: 2 | H199: 630 | I199: 1260
A200: 197 | B200: 秦川镇 | C200: 振兴村委会 | D200: 一社 | E200: 马国海 | F200: 三类 | G200: 5 | H200: 100 | I200: 500
... 754 more rows
